Cogmind - Beta 13 X1 @@@ ROGUE MODE // 2023.09.13 @ 22:39:40 Player: Terminus Result: Self-destructed Performance ------------- Evolutions (5) 2500 Regions Visited (18) 3600 Robots Destroyed (235) 1175 Value Destroyed (6697) 6697 Prototype IDs (25) 500 Alien Tech Used (0) 0 Bonus (2128) 2128 TOTAL SCORE: 16600 Bonus ------- High Alert Combat Kills 663 Follower Combat Kills 918 Met Data Miner 300 Met Imprinter 300 Friendly Fire -53 Cogmind --------- Core Integrity 763/1000 Matter 217/300 Energy 46/100 System Corruption 4% Temperature Cool (0) Movement Core (350) Ox6 Location -5/Factory Parts ------- > --- POWER (1) -------- (None) > --- PROPULSION (5) --- Combat Airjet Combat Gravmag System > --- UTILITY (9) ------ Large Storage Unit Advanced Signal Interpreter Advanced Targeting Computer Hacking Suite Makeshift Hacking Suite > --- WEAPON (2) ------- (None) > --- INVENTORY (15) --- Combat Gravmag System Combat Gravmag System Improved Cooling System Advanced Sensor Array Launcher Loader Improved Heavy Armor Plating Improved Shock Absorption System Hacking Suite Remote Datajack CR-A16's Behemoth Slayer Peak State ------------ > --- POWER ------------ Light Fission Core > --- PROPULSION ------- Combat Airjet Combat Airjet Combat Gravmag System Combat Gravmag System Combat Gravmag System > --- UTILITY ---------- Large Storage Unit Advanced Sensor Array Advanced Signal Interpreter Advanced Targeting Computer Weapon Cycler Layered Medium Armor Plating Hacking Suite Makeshift Hacking Suite Long-range Tractor Beam > --- WEAPON ----------- Heavy Plasma Cannon CR-A16's Behemoth Slayer > --- INVENTORY -------- Combat Gravmag System Combat Gravmag System Improved Cooling System Launcher Loader Improved Heavy Armor Plating Layered Medium Armor Plating Improved Shock Absorption System Phase Cannon Long-range Missile Launcher Long-range Missile Launcher Remote Datajack [Rating: 86] Favorites ----------- Power Heavy Ion Engine Engine Heavy Ion Engine Power Core Light Fission Core Propulsion Combat Airjet Treads Light Treads Wheel Armored Wheel Hover Unit Combat Airjet Utility Hacking Suite Device Improved Heat Sink Storage Large Storage Unit Processor Improved Signal Interpreter Hackware Hacking Suite Protection Layered Medium Armor Plating Weapon Particle Cannon Energy Gun Advanced Beam Rifle Energy Cannon Particle Cannon Ballistic Gun Light Assault Rifle Ballistic Cannon Light Cannon Launcher Long-range Missile Launcher Special Weapon Remote Datajack Impact Weapon Great Maul Piercing Weapon CR-A16's Behemoth Slayer Build | -11 -10 -10 -9 -9 -8 -7 -7 -7 -7 -6 -6 -6 -6 -6 -6 -6 -5 -5 ------- Run | Jun Mat Min Mat Min Mat Fac Low Low Zio Pro Fac Was Fac Low Low Dat Pro Fac Slots Evolved 10 | . . . 2 . 2 2 . . . . 2 . . . . . . 2 Power . | . . . . . . . . . . . . . . . . . . . Propulsion 3 | . . . . . 1 1 . . . . 1 . . . . . . . Utility 7 | . . . 2 . 1 1 . . . . 1 . . . . . . 2 Weapon . | . . . . . . . . . . . . . . . . . . . Parts Attached 235 | 6 26 1 20 8 19 46 9 . 7 5 19 4 24 5 5 6 8 17 Power 18 | 1 5 . 2 . . 1 2 . 3 . 1 . . . 1 1 . 1 Engine 16 | 1 5 . 2 . . 1 2 . 2 . 1 . . . 1 . . 1 Core 2 | . . . . . . . . . 1 . . . . . . 1 . . Reactor . | . . . . . . . . . . . . . . . . . . . Propulsion 40 | 2 8 1 6 2 7 8 . . . . 2 . 2 1 . . . 1 Treads 20 | 2 6 1 4 1 5 1 . . . . . . . . . . . . Leg . | . . . . . . . . . . . . . . . . . . . Wheel 6 | . 2 . 2 . 2 . . . . . . . . . . . . . Hover 14 | . . . . 1 . 7 . . . . 2 . 2 1 . . . 1 Flight . | . . . . . . . . . . . . . . . . . . . Utility 97 | 1 4 . 5 4 5 18 5 . . 4 8 4 15 2 2 5 6 9 Device 60 | . 1 . 3 1 2 9 5 . . 4 4 3 11 2 2 2 5 6 Storage 5 | 1 2 . . . . 1 . . . . . . . . . . . 1 Processor 4 | . . . . . . 2 . . . . . . 1 . . . . 1 Hackware 3 | . . . . . 1 1 . . . . . . . . . 1 . . Protection 25 | . 1 . 2 3 2 5 . . . . 4 1 3 . . 2 1 1 Artifact . | . . . . . . . . . . . . . . . . . . . Weapon 80 | 2 9 . 7 2 7 19 2 . 4 1 8 . 7 2 2 . 2 6 Energy Gun 9 | 1 . . . . 1 4 1 . 2 . . . . . . . . . Energy Cannon 32 | . 4 . 5 2 5 5 . . . . 3 . 3 1 1 . 1 2 Ballistic Gun 2 | 1 1 . . . . . . . . . . . . . . . . . Ballistic Cannon 4 | . 4 . . . . . . . . . . . . . . . . . Launcher 19 | . . . 2 . 1 3 . . . 1 2 . 3 1 1 . 1 4 Special Weapon 1 | . . . . . . . . . . . 1 . . . . . . . Impact Weapon 1 | . . . . . . 1 . . . . . . . . . . . . Slashing Weapon . | . . . . . . . . . . . . . . . . . . . Piercing Weapon 12 | . . . . . . 6 1 . 2 . 2 . 1 . . . . . Special Melee Weapon . | . . . . . . . . . . . . . . . . . . . Unidentified Prototypes 4 | . . . 1 . 1 2 . . . . . . . . . . . . Corrupted Parts 2 | . . . . 1 . . . . 1 . . . . . . . . . System Corruption 17 | . . . . 7 . . . . 10 . . . . . . . . . Parts Lost 24 | . 1 . 1 3 . 2 . . . . 2 . . . . 1 1 13 Power 5 | . . . 1 . . 1 . . . . . . . . . 1 . 2 Propulsion 3 | . . . . . . . . . . . . . . . . . . 3 Utility 9 | . . . . 3 . . . . . . 1 . . . . . 1 4 Weapon 7 | . 1 . . . . 1 . . . . 1 . . . . . . 4 Highest Loss Streak 9 | . 1 . 1 1 . 2 . . . . 1 . . . . 1 1 9 To Critical Strikes . | . . . . . . . . . . . . . . . . . . . Average Slot Usage (%) 98 | . 98 100 99 99 97 96 99 100 98 100 99 99 99 100 100 100 99 95 Engine 8 | . 13 14 10 11 9 7 6 7 6 7 6 6 6 6 6 5 . 3 Treads 8 | . 24 14 11 11 17 6 . . . . . . . . . . . . Wheel 4 | . 2 14 11 11 9 2 . . . . . . . . . . . . Hover 15 | . . . . . . 20 30 30 30 30 33 33 33 33 33 33 33 28 Device 11 | . 3 14 22 18 9 6 7 7 7 7 12 12 12 13 13 7 13 16 Storage 8 | . 14 14 11 11 9 7 7 7 7 7 6 6 6 6 6 6 6 5 Processor 3 | . . . . . . 6 7 7 7 7 6 6 6 6 6 6 6 11 Hackware 7 | . . . . . 9 12 15 15 15 15 13 13 13 13 13 13 13 11 Protection 8 | . 9 . 11 13 16 7 7 7 7 7 6 6 6 6 6 11 5 4 Energy Gun 1 | . . . . . . 6 7 7 6 7 . . . . . . . . Energy Cannon 10 | . 7 28 22 22 17 4 . . . . 1 6 5 4 5 6 . 3 Ballistic Cannon 2 | . 17 . . . . . . . . . . . . . . . . . Piercing Weapon 2 | . . . . . . 2 6 7 6 1 5 6 5 6 6 6 6 2 Naked Turns . | . . . . . . . . . . . . . . . . . . . Heaviest Build 117 | 13 94 94 105 105 117 117 42 42 42 40 57 54 60 55 55 65 49 50 Greatest Support 66 | 40 40 10 12 12 12 48 48 48 48 48 57 57 64 66 66 66 66 66 Greatest Overweight (x) 10 | 2 9 9 10 8 9 9 . . . . 1 . 1 . . . . . Average Overweight (x) 2 | . 2 9 9 8 8 1 . . . . . . . . . . . . Largest Inventory Capacity 25 | 8 25 25 25 25 25 25 15 15 15 15 15 15 15 15 15 15 15 15 Average Capacity 18 | 7 20 25 25 25 25 18 15 15 15 15 15 15 15 15 15 15 15 15 Most Carried 25 | 6 25 25 25 25 25 25 15 15 15 15 15 15 15 15 15 15 13 14 Average Carried 17 | 3 18 24 24 24 24 18 14 15 14 15 14 14 14 14 15 14 12 12 Final Capacity 25 | 8 25 25 25 25 25 15 15 15 15 15 15 15 15 15 15 15 15 15 Final Carried 25 | 6 25 25 25 25 25 15 15 15 15 15 15 15 15 15 15 13 13 12 Class Distribution -------------------- 46% | Mutant 43% | Hacker-Mutant 10% | Scavenger-Mutant Dominant Class ---------------- Mutant | -10/Materials Mutant | -10/Mines Scavenger-Mutant | -9/Materials Mutant | -9/Mines Mutant | -8/Materials Hacker-Mutant | -7/Factory Hacker-Mutant | -7/Lower Caves Hacker-Mutant | -7/Lower Caves Hacker-Mutant | -7/Zion Hacker-Mutant | -6/Proximity Caves Hacker-Mutant | -6/Factory Hacker-Mutant | -6/Waste Hacker-Mutant | -6/Factory Hacker-Mutant | -6/Lower Caves Hacker-Mutant | -6/Lower Caves Hacker-Mutant | -6/Data Miner Hacker-Mutant | -5/Proximity Caves Hacker-Mutant | -5/Factory Resources | -11 -10 -10 -9 -9 -8 -7 -7 -7 -7 -6 -6 -6 -6 -6 -6 -6 -5 -5 ----------- Run | Jun Mat Min Mat Min Mat Fac Low Low Zio Pro Fac Was Fac Low Low Dat Pro Fac Matter Collected 4599 | 276 606 132 423 92 443 409 260 14 83 93 401 125 355 195 155 . 241 296 Remotely 376 | . . . . . . . . . . . . . 80 . . . . 296 Salvage Created 7630 | 128 862 145 1435 330 666 1354 229 . . 83 623 . 901 66 43 . 330 435 Parts 398 | 6 52 10 87 15 32 68 5 . . 8 38 . 34 4 1 . 9 29 Haulers Intercepted 21 | . 2 . 5 . 3 7 . . . . 2 . 2 . . . . . Recyclers Shooed 10 | 1 2 . . . . 3 . . . . 3 . 1 . . . . . Parts Field Recycled . | . . . . . . . . . . . . . . . . . . . Retrieved Matter . | . . . . . . . . . . . . . . . . . . . Parts Self-Destructed 19 | . . . . . . . 1 . . 6 . . . 3 1 . 8 . Prevented 7 | . . . . . . . 5 2 . . . . . . . . . . Kills | -11 -10 -10 -9 -9 -8 -7 -7 -7 -7 -6 -6 -6 -6 -6 -6 -6 -5 -5 ------- Run | Jun Mat Min Mat Min Mat Fac Low Low Zio Pro Fac Was Fac Low Low Dat Pro Fac Combat Hostiles Destroyed 139 | 2 16 . 22 8 9 10 . . . 6 12 . 14 4 2 . 11 23 Guns 5 | 2 1 . . . . 2 . . . . . . . . . . . . Cannons 54 | . 15 . 16 8 3 4 . . . . 2 . 2 1 1 . . 2 AOE 73 | . . . 6 . 5 2 . . . 6 9 . 10 3 1 . 10 21 Classes Destroyed 21 | 2 8 1 2 1 . 2 1 . . . 1 . . . . . 2 1 Worker 26 | . 4 . 3 2 1 9 . . . . 3 . 2 . . . . 2 Builder 10 | . 2 . . . . . . . . . 2 . 2 . . . . 4 Tunneler 4 | . . 2 . 1 . . . . . . . . . . . . . 1 Hauler 21 | . 2 . 5 . 3 7 . . . . 2 . 2 . . . . . Recycler 14 | 1 3 1 3 1 1 3 . . . . . . 1 . . . . . Mechanic 1 | . 1 . . . . . . . . . . . . . . . . . Operator 8 | . 2 . 3 . 1 1 . . . . 1 . . . . . . . Drone 2 | . . . . . . . . . . . . . . . . . 2 . Watcher 14 | . 3 . 4 . 1 4 . . . . 1 . 1 . . . . . Swarmer 40 | . 5 . 6 4 . . . . . 4 7 . . 3 . . 2 9 Saboteur 1 | . . . . . . . . . . . . . . . . . . 1 Grunt 56 | . 11 . 9 . 5 4 . . . . 2 . 10 . 1 . 5 9 Brawler 2 | . . . 1 . . . . . . . . . 1 . . . . . Duelist 2 | . . . . . . . . . . . . . . . . . 1 1 Sentry 11 | . . . 6 . 4 1 . . . . . . . . . . . . Demolisher 4 | 2 . . . 2 . . . . . . . . . . . . . . Hunter 4 | . . . . . . 1 . . . 2 . . . . . . . 1 Programmer 11 | . . . . . . 4 . . . . 1 . 2 1 1 . . 2 Behemoth 3 | . . . . . . . . . . . 1 . 1 . . . 1 . Decomposer 1 | . . . . . . . 1 . . . . . . . . . . . Samaritan 1 | . . . . . . . 1 . . . . . . . . . . . Assembled 2 | . . . . 2 . . . . . . . . . . . . . . Thug 1 | . . . . . . . . . . . 1 . . . . . . . Best Kill Streak 8 | 1 7 2 6 4 6 8 . . . 4 8 . 7 3 1 . 6 7 Combat Bots Only 7 | 1 5 . 4 4 5 2 . . . 4 5 . 7 3 1 . 6 6 Max Kills in Single Turn 7 | 1 1 1 3 1 2 3 1 . . 3 3 . 2 1 1 . 1 7 Gunslinging . | . . . . . . . . . . . . . . . . . . . Exploded 6 | . . . 3 . 2 1 . . . 3 3 . 2 1 1 . 1 6 Melee . | . . . . . . . . . . . . . . . . . . . Uniques/NPCs Destroyed . | . . . . . . . . . . . . . . . . . . . Combat | -11 -10 -10 -9 -9 -8 -7 -7 -7 -7 -6 -6 -6 -6 -6 -6 -6 -5 -5 -------- Run | Jun Mat Min Mat Min Mat Fac Low Low Zio Pro Fac Was Fac Low Low Dat Pro Fac Damage Taken 7389 | 442 712 . 381 518 352 1024 15 . . 340 730 . 349 58 138 549 141 1640 Core 908 | 42 70 . 20 108 14 92 . . . 41 81 . 56 . 16 74 57 237 Absorbed by Shields 9 | . . . . . . . . . . . . . 9 . . . . . Ignored by Resistances 169 | . . . . . . 24 . . . . 18 . 16 . . 106 5 . Regen/Repaired (Parts) 925 | . 260 . . . 118 . . . . . 73 179 178 . . . . 117 Core Remaining (%) 75 | 83 . 55 . 68 97 . . . . 81 . . . . . . 66 . Volleys Fired 495 | 16 84 5 66 19 29 77 4 . . 12 26 6 77 14 13 5 15 27 Largest 2 | 2 2 2 2 2 2 2 2 . . 1 1 1 1 1 1 1 1 1 Hottest 136 | 70 136 136 136 136 112 122 122 . . 36 90 90 90 90 90 90 90 90 Shots Fired 762 | 32 162 10 129 40 55 129 10 . . 12 26 6 77 14 13 5 15 27 Gun 131 | 32 25 . . . . 64 10 . . . . . . . . . . . Cannon 543 | . 137 10 127 40 52 60 . . . . 9 6 64 11 6 5 2 14 Launcher 87 | . . . 2 . 3 5 . . . 12 16 . 13 3 7 . 13 13 Special 1 | . . . . . . . . . . . 1 . . . . . . . Kinetic 156 | 16 140 . . . . . . . . . . . . . . . . . Thermal 390 | 16 22 10 127 17 . 71 10 . . . 9 6 64 11 6 5 2 14 Explosive 87 | . . . 2 . 3 5 . . . 12 16 . 13 3 7 . 13 13 Electromagnetic 128 | . . . . 23 52 53 . . . . . . . . . . . . Robot Hit Streak 14 | 4 9 1 12 11 11 14 3 . . 4 6 1 8 1 3 . 4 6 Robot Miss Streak 5 | 2 5 1 4 1 1 3 2 . . 1 2 3 2 1 2 . . 4 Penetration Max . | . . . . . . . . . . . . . . . . . . . Secondary Targets 1 | 1 . . . . . . . . . . . . . . . . . . Max Gunslinging Chain 1 | 1 . . . . . . . . . . . . . . . . . . Shots Hit Robots 476 | 19 98 4 79 30 39 98 11 . . 5 25 2 40 1 6 1 6 12 Core Hits 328 | 5 39 3 40 12 24 40 5 . . 9 37 1 32 3 5 . 20 53 Critical Kills 1 | . . . 1 . . . . . . . . . . . . . . . Critical Parts Destroyed 2 | . 1 . . . . 1 . . . . . . . . . . . . Critical Strikes 14 | . 5 . 1 . 1 4 1 . . . . . 1 . . . . 1 Burn 4 | . . . . . . 3 1 . . . . . . . . . . . Meltdown 1 | . . . 1 . . . . . . . . . . . . . . . Destroy 1 | . 1 . . . . . . . . . . . . . . . . . Blast 4 | . 4 . . . . . . . . . . . . . . . . . Corrupt 1 | . . . . . 1 . . . . . . . . . . . . . Smash 1 | . . . . . . 1 . . . . . . . . . . . . Impale 2 | . . . . . . . . . . . . . 1 . . . . 1 Melee Attacks 130 | . . . . . . 48 7 . . . 42 . 9 1 . 13 7 3 Impact 9 | . . . . . . 9 . . . . . . . . . . . . Slashing . | . . . . . . . . . . . . . . . . . . . Piercing 121 | . . . . . . 39 7 . . . 42 . 9 1 . 13 7 3 Sneak Attacks 24 | . . . . . . 8 2 . . . 8 . 4 . . 1 . 1 Combat Hostiles 1 | . . . . . . . . . . . 1 . . . . . . . Follow-up Attacks . | . . . . . . . . . . . . . . . . . . . Damage Inflicted 23499 | 203 1674 81 2037 601 1436 3356 445 . . 733 2335 129 2740 327 708 103 1523 5068 Guns 1383 | 203 160 . . . . 940 80 . . . . . . . . . . . Cannons 7722 | . 1501 81 1804 594 881 1224 . . . . 176 129 962 40 119 . . 211 Explosions 11790 | . . . 233 . 555 587 . . . 733 1326 . 1382 287 589 . 1318 4780 Melee 2573 | . . . . . . 605 365 . . . 833 . 396 . . 103 205 66 Ramming 31 | . 13 . . 7 . . . . . . . . . . . . . 11 Kinetic 1515 | 80 1435 . . . . . . . . . . . . . . . . . Thermal 6560 | 123 226 81 1804 213 81 1197 80 . . . 176 129 962 40 119 . . 1329 Explosive 10500 | . . . 233 . 474 496 . . . 733 1326 . 1382 287 589 . 1318 3662 Electromagnetic 2320 | . . . . 381 881 1058 . . . . . . . . . . . . Impact 128 | . . . . . . 128 . . . . . . . . . . . . Slashing . | . . . . . . . . . . . . . . . . . . . Piercing 2445 | . . . . . . 477 365 . . . 833 . 396 . . 103 205 66 Highest Corruption 13 | . . . 4 11 . 13 13 9 10 . . . . . . . . 4 Average Corruption 5 | . . . 2 4 . 6 10 9 9 . . . . . . . . 2 Corruption Purged 4 | . . . . . . . 4 . . . . . . . . . . . Corruption Blocked . | . . . . . . . . . . . . . . . . . . . Effects 122 | . . . 21 35 . 38 17 9 1 . . . . . . . . 1 Message Errors 37 | . . . 4 15 . 14 3 . 1 . . . . . . . . . Matter Fused 25 | . . . 7 4 . 9 1 4 . . . . . . . . . . Heat Flow Errors 11 | . . . 1 5 . 3 1 1 . . . . . . . . . . Energy Discharges 12 | . . . 3 . . 3 4 2 . . . . . . . . . . Parts Rejected 2 | . . . . 1 . 1 . . . . . . . . . . . . Parts Fused 1 | . . . . . . . . 1 . . . . . . . . . . Data Loss (minor) 17 | . . . 5 5 . 3 3 1 . . . . . . . . . . Data Loss (major) 4 | . . . . 1 . 1 1 . . . . . . . . . . 1 Misfires 7 | . . . . 3 . 1 3 . . . . . . . . . . . Misdirections 3 | . . . . . . 3 . . . . . . . . . . . . Weapon Failures 3 | . . . 1 1 . . 1 . . . . . . . . . . . Overload Shots . | . . . . . . . . . . . . . . . . . . . Overflow Damage 1313 | . 5 . . 51 28 302 76 . . . 44 . 122 31 50 43 153 408 Projectiles 239 | . 5 . . 51 28 47 . . . . 10 . 77 . . . . 21 Explosions 612 | . . . . . . 21 . . . . 9 . 23 31 50 . 91 387 Melee 462 | . . . . . . 234 76 . . . 25 . 22 . . 43 62 . Knockbacks 11 | . 11 . . . . . . . . . . . . . . . . . Impact . | . . . . . . . . . . . . . . . . . . . Kinetic 10 | . 10 . . . . . . . . . . . . . . . . . Secondary 1 | . 1 . . . . . . . . . . . . . . . . . Self-Inflicted Damage 320 | . . . . . 71 . . . . . 110 . . . . . . 139 Shots 7 | . . . . . 2 . . . . . 2 . . . . . . 3 Rammed 6 | . 4 . . 1 . . . . . . . . . . . . . 1 Targets Rammed 7 | . 5 . . 1 . . . . . . . . . . . . . 1 Kicked . | . . . . . . . . . . . . . . . . . . . Crushed 1 | . 1 . . . . . . . . . . . . . . . . . Highest Temperature 304 | 190 257 45 145 240 78 292 230 192 . 28 128 210 304 240 148 88 126 135 Average Temperature 56 | 82 72 26 13 65 25 83 82 100 . 15 40 87 80 60 16 29 25 34 Received Heat Transfer 1310 | . 291 . 177 . 117 240 9 . . . 102 . 48 20 27 . 24 255 Effects 7 | . 2 . . . . 4 . . . . . . . 1 . . . . Energy Bleed 3 | . 1 . . . . 1 . . . . . . . 1 . . . . Interference 4 | . 1 . . . . 3 . . . . . . . . . . . . Siege Activations . | . . . . . . . . . . . . . . . . . . . Robots Corrupted 3 | . . . . . 1 2 . . . . . . . . . . . . Combat Hostiles 3 | . . . . . 1 2 . . . . . . . . . . . . Parts Fried 11 | . . . . . 4 7 . . . . . . . . . . . . Impact Corruptions 2 | . 1 . . . . 1 . . . . . . . . . . . . Robots Melted 2 | . . . 1 . . . . . . . . . 1 . . . . . Combat Hostiles 1 | . . . . . . . . . . . . . 1 . . . . . Parts Melted 16 | . . 1 8 . . 4 . . . . . . 2 . 1 . . . Heat Transferred 9745 | 370 407 148 3108 370 100 2111 222 . . . 250 200 1350 50 150 . . 909 Parts Sabotaged . | . . . . . . . . . . . . . . . . . . . Parts Stolen 1 | . . . . . . . 1 . . . . . . . . . . . Parts Stripped . | . . . . . . . . . . . . . . . . . . . Power Chain Reactions 4 | . . . . . 2 2 . . . . . . . . . . . . Missiles Intercepted . | . . . . . . . . . . . . . . . . . . . Alert | -11 -10 -10 -9 -9 -8 -7 -7 -7 -7 -6 -6 -6 -6 -6 -6 -6 -5 -5 ------- Run | Jun Mat Min Mat Min Mat Fac Low Low Zio Pro Fac Was Fac Low Low Dat Pro Fac Peak Influence 1089 | 55 346 70 413 146 213 257 . . . . 523 157 1077 . . . . 1089 Initial 175 | . 35 1 4 136 . 6 . . . . 88 124 92 . . . . 175 Average 183 | 2 78 22 233 53 57 118 . . . . 244 133 613 . . . . 705 Maximum Alert Level 3 | . 1 . 2 . 1 1 . . . . 2 . 3 . . . . 3 Low Security (%) 70 | 100 87 100 39 100 93 87 . . . . 40 100 3 . . . . 25 Level 1 14 | . 12 . 54 . 6 12 . . . . 42 . 4 . . . . . Level 2 9 | . . . 5 . . . . . . . 17 . 69 . . . . 5 Level 3 5 | . . . . . . . . . . . . . 22 . . . . 69 Level 4 . | . . . . . . . . . . . . . . . . . . . Level 5 . | . . . . . . . . . . . . . . . . . . . High Security . | . . . . . . . . . . . . . . . . . . . Max Security . | . . . . . . . . . . . . . . . . . . . Squads Dispatched 46 | . 4 . 4 . 3 11 . . . . 6 . 12 . . . . 6 Investigation 15 | . 3 . 1 . 1 3 . . . . 2 . 5 . . . . . Extermination 6 | . . . . . . 3 . . . . 1 . 1 . . . . 1 Reinforcement 20 | . 1 . 3 . 2 5 . . . . 2 . 3 . . . . 4 Assault 3 | . . . . . . . . . . . 1 . 1 . . . . 1 Garrison 2 | . . . . . . . . . . . . . 2 . . . . . Intercept . | . . . . . . . . . . . . . . . . . . . Searches Triggered . | . . . . . . . . . . . . . . . . . . . Construction Impeded 5 | . . . . . . . . . . . . . 2 . . . . 3 Haulers Reinforced 3 | . . . . . . 2 . . . . . . 1 . . . . . Active Scanning Responses . | . . . . . . . . . . . . . . . . . . . Cargo Convoy Interrupts 1 | . . . . . . . . . . . . . . . . . . 1 Stealth | -11 -10 -10 -9 -9 -8 -7 -7 -7 -7 -6 -6 -6 -6 -6 -6 -6 -5 -5 --------- Run | Jun Mat Min Mat Min Mat Fac Low Low Zio Pro Fac Was Fac Low Low Dat Pro Fac Distress Signals 14 | . 1 . 3 . 2 3 . . . . 4 . 1 . . . . . Communications Jammed . | . . . . . . . . . . . . . . . . . . . Distress Signals . | . . . . . . . . . . . . . . . . . . . Times Spotted 246 | 2 31 . 36 8 12 30 2 1 . 5 32 4 33 2 3 4 4 37 Peak Tracking Total 16 | 2 6 . 4 4 6 4 1 1 . 4 7 2 7 2 3 4 3 16 Tactical Retreats 23 | . . . 1 . . 4 1 1 . . 7 1 4 . . . 2 2 Traps | -11 -10 -10 -9 -9 -8 -7 -7 -7 -7 -6 -6 -6 -6 -6 -6 -6 -5 -5 ------- Run | Jun Mat Min Mat Min Mat Fac Low Low Zio Pro Fac Was Fac Low Low Dat Pro Fac Traps Triggered 19 | . 2 . 2 . 2 5 . . . . 5 . 3 . . . . . Indirectly . | . . . . . . . . . . . . . . . . . . . Trap Hack Attempts . | . . . . . . . . . . . . . . . . . . . Triggered . | . . . . . . . . . . . . . . . . . . . Disarmed . | . . . . . . . . . . . . . . . . . . . Reprogrammed . | . . . . . . . . . . . . . . . . . . . Reused . | . . . . . . . . . . . . . . . . . . . Traps Extracted . | . . . . . . . . . . . . . . . . . . . Installed . | . . . . . . . . . . . . . . . . . . . Triggered 5 | . . . . . . . 3 1 . . . . . 1 . . . . Machines | -11 -10 -10 -9 -9 -8 -7 -7 -7 -7 -6 -6 -6 -6 -6 -6 -6 -5 -5 ---------- Run | Jun Mat Min Mat Min Mat Fac Low Low Zio Pro Fac Was Fac Low Low Dat Pro Fac Machines Disabled 48 | . 4 2 4 . . 3 . . . . 5 . 14 . . 1 . 15 Max in Single Turn 9 | . 2 2 3 . . 1 . . . . 2 . 4 . . 1 . 9 Garrison Access 5 | . . . . . . . . . . . 1 . 3 . . . . 1 Machines Repaired . | . . . . . . . . . . . . . . . . . . . Machines Sabotaged . | . . . . . . . . . . . . . . . . . . . Overloaded Fab Kills . | . . . . . . . . . . . . . . . . . . . Hacking | -11 -10 -10 -9 -9 -8 -7 -7 -7 -7 -6 -6 -6 -6 -6 -6 -6 -5 -5 --------- Run | Jun Mat Min Mat Min Mat Fac Low Low Zio Pro Fac Was Fac Low Low Dat Pro Fac Machines Accessed 73 | . 7 . 10 . 7 16 . . . . 10 . 15 . . 4 . 4 Terminals 45 | . 5 . 8 . 5 11 . . . . 6 . 8 . . . . 2 Fabricators 6 | . . . . . . 3 . . . . 1 . 2 . . . . . Repair Stations 7 | . 1 . . . 1 1 . . . . 2 . 1 . . . . 1 Recycling Units 2 | . 1 . 1 . . . . . . . . . . . . . . . Scanalyzers 3 | . . . 1 . 1 . . . . . . . 1 . . . . . Garrison Access 6 | . . . . . . 1 . . . . 1 . 3 . . . . 1 Total Hacks 225 | . 29 . 29 . 28 39 . . . . 25 . 41 . . 26 . 8 Successful 153 | . 17 . 18 . 26 20 . . . . 14 . 26 . . 26 . 6 Failed 71 | . 11 . 11 . 2 19 . . . . 11 . 15 . . . . 2 Catastrophic 8 | . . . . . 1 2 . . . . . . 4 . . . . 1 Database Lockouts 1 | . 1 . . . . . . . . . . . . . . . . . Manual 101 | . 17 . 20 . 16 22 . . . . 8 . 17 . . . . 1 Terminals 136 | . 21 . 26 . 20 28 . . . . 16 . 21 . . . . 4 Fabricators 16 | . . . . . . 7 . . . . 2 . 7 . . . . . Repair Stations 25 | . 6 . . . 4 2 . . . . 6 . 4 . . . . 3 Recycling Units 3 | . 2 . 1 . . . . . . . . . . . . . . . Scanalyzers 10 | . . . 2 . 4 . . . . . . . 4 . . . . . Garrison Access 9 | . . . . . . 2 . . . . 1 . 5 . . . . 1 Terminal Hacks 74 | . 7 . 9 . 12 8 . . . . 5 . 6 . . 26 . 1 Record 11 | . . . . . . . . . . . . . . . . 11 . . Part Schematic 12 | . . . . . 2 . . . . . 1 . . . . 9 . . Robot Schematic 3 | . . . . . . . . . . . . . . . . 3 . . Robot Analysis 5 | . 1 . 4 . . . . . . . . . . . . . . . Prototype ID Bank 9 | . 1 . 3 . 2 . . . . . . . . . . 3 . . Branch Access Points 3 | . . . . . . 1 . . . . 1 . 1 . . . . . Terminal Index 6 | . 1 . 1 . 1 1 . . . . . . 1 . . . . 1 Fabricator Index 1 | . . . . . . 1 . . . . . . . . . . . . Scanalyzer Index 1 | . . . . . 1 . . . . . . . . . . . . . Alert Level 9 | . 1 . 1 . 3 2 . . . . 1 . 1 . . . . . Unreport Threat 6 | . 1 . . . . 1 . . . . 1 . 3 . . . . . Recall Investigation 1 | . . . . . . 1 . . . . . . . . . . . . Recall Reinforcements 1 | . . . . . . 1 . . . . . . . . . . . . Hauler Manifests 2 | . 1 . . . 1 . . . . . . . . . . . . . Zone Layout 4 | . 1 . . . 2 . . . . . 1 . . . . . . . Fabricator Hacks 10 | . . . . . . 4 . . . . 2 . 4 . . . . . Load Schematic 5 | . . . . . . 2 . . . . 1 . 2 . . . . . Build 5 | . . . . . . 2 . . . . 1 . 2 . . . . . Repair Station Hacks 21 | . 6 . . . 4 1 . . . . 3 . 4 . . . . 3 Scan Component 12 | . 3 . . . 2 1 . . . . 2 . 2 . . . . 2 Repair 9 | . 3 . . . 2 . . . . . 1 . 2 . . . . 1 Recycling Unit Hacks . | . . . . . . . . . . . . . . . . . . . Scanalyzer 8 | . . . 2 . 4 . . . . . . . 2 . . . . . Insert Component 4 | . . . 1 . 2 . . . . . . . 1 . . . . . Analyze 4 | . . . 1 . 2 . . . . . . . 1 . . . . . Garrison Access Hacks 5 | . . . . . . . . . . . 1 . 3 . . . . 1 Seal Access 5 | . . . . . . . . . . . 1 . 3 . . . . 1 Unauthorized Hacks 35 | . 4 . 7 . 6 7 . . . . 3 . 7 . . . . 1 Terminals 29 | . 3 . 6 . 6 6 . . . . 3 . 4 . . . . 1 Track 2 | . . . . . 2 . . . . . . . . . . . . . Assimilate 2 | . . . 1 . . 1 . . . . . . . . . . . . Botnet 25 | . 3 . 5 . 4 5 . . . . 3 . 4 . . . . 1 Fabricators 3 | . . . . . . 1 . . . . . . 2 . . . . . Prioritize 3 | . . . . . . 1 . . . . . . 2 . . . . . Repair Stations . | . . . . . . . . . . . . . . . . . . . Recycling Units 2 | . 1 . 1 . . . . . . . . . . . . . . . Tunnel 2 | . 1 . 1 . . . . . . . . . . . . . . . Scanalyzers . | . . . . . . . . . . . . . . . . . . . Garrison Access 1 | . . . . . . . . . . . . . 1 . . . . . Reprogram 1 | . . . . . . . . . . . . . 1 . . . . . Data Cores Recovered . | . . . . . . . . . . . . . . . . . . . Used . | . . . . . . . . . . . . . . . . . . . Hacking Detections 57 | . 4 . 8 . 5 14 . . . . 9 . 14 . . . . 3 Full Trace Events 10 | . 2 . . . . 2 . . . . 2 . 4 . . . . . Feedback Events . | . . . . . . . . . . . . . . . . . . . Feedback Blocked . | . . . . . . . . . . . . . . . . . . . Robot Schematics Acquired 3 | . . . . . . . . . . . . . . . . 3 . . Robots Built . | . . . . . . . . . . . . . . . . . . . Authchips . | . . . . . . . . . . . . . . . . . . . Time . | . . . . . . . . . . . . . . . . . . . Total Robot Build Rating . | . . . . . . . . . . . . . . . . . . . Part Schematics Acquired 15 | . . . 1 . 3 . . . . . 1 . 1 . . 9 . . Parts Built 10 | . . . . . . 4 . . . . 2 . 4 . . . . . Authchips . | . . . . . . . . . . . . . . . . . . . Time 231 | . . . . . . 94 . . . . 31 . 106 . . . . . Total Part Build Rating 54 | . . . . . . 20 . . . . 10 . 24 . . . . . Parts Repaired 9 | . 3 . . . 2 . . . . . 1 . 2 . . . . 1 Time 331 | . 78 . . . 64 . . . . . 19 . 120 . . . . 50 Parts Recycled . | . . . . . . . . . . . . . . . . . . . Recycled Matter . | . . . . . . . . . . . . . . . . . . . Retrieved Matter . | . . . . . . . . . . . . . . . . . . . Retrieved Components . | . . . . . . . . . . . . . . . . . . . Parts Scanalyzed 4 | . . . 1 . 2 . . . . . . . 1 . . . . . Part Schematics Acquired 3 | . . . 1 . 1 . . . . . . . 1 . . . . . Parts Damaged . | . . . . . . . . . . . . . . . . . . . Bothacking | -11 -10 -10 -9 -9 -8 -7 -7 -7 -7 -6 -6 -6 -6 -6 -6 -6 -5 -5 ------------ Run | Jun Mat Min Mat Min Mat Fac Low Low Zio Pro Fac Was Fac Low Low Dat Pro Fac Used RIF Installer . | . . . . . . . . . . . . . . . . . . . Robots Hacked 1 | . . . . . . . . . . . 1 . . . . . . . Non-combat 1 | . . . . . . . . . . . 1 . . . . . . . Combat . | . . . . . . . . . . . . . . . . . . . Robot Hacks Applied 1 | . . . . . . . . . . . 1 . . . . . . . find_chute 1 | . . . . . . . . . . . 1 . . . . . . . Relay Couplers Released 3 | . . . . . . 3 . . . . . . . . . . . . Programmers 3 | . . . . . . 3 . . . . . . . . . . . . Fabnet Peak Effective % . | . . . . . . . . . . . . . . . . . . . Robots Rewired 4 | . . . . . . . . . . . . . . 4 . . . . Allies Hacked 3 | . . . . . . . . . . . 1 . . . 2 . . . Hacks Repelled . | . . . . . . . . . . . . . . . . . . . Allies | -11 -10 -10 -9 -9 -8 -7 -7 -7 -7 -6 -6 -6 -6 -6 -6 -6 -5 -5 -------- Run | Jun Mat Min Mat Min Mat Fac Low Low Zio Pro Fac Was Fac Low Low Dat Pro Fac Total Allies 32 | . . 6 1 . . . . . . . 3 18 . 4 . . . . Largest Group 18 | . . 6 5 . . . . . . . 3 18 14 4 3 . . . Highest-Rated Group 638 | . . 109 78 . . . . . . . 93 638 513 85 61 . . . Highest-Rated Ally 50 | . . 31 31 . . . . . . . 31 50 50 25 21 . . . Total Orders . | . . . . . . . . . . . . . . . . . . . Ally Attacks 306 | . . 9 37 . . . . . . . 20 138 91 6 5 . . . Total Damage 9572 | . . 68 368 . . . . . . . 301 4421 3993 280 141 . . . Kills 37 | . . 2 4 . . . . . . . 1 7 20 1 2 . . . Allies Corrupted 1 | . . . . . . . . . . . . . . . 1 . . . Allies Melted . | . . . . . . . . . . . . . . . . . . . Intel | -11 -10 -10 -9 -9 -8 -7 -7 -7 -7 -6 -6 -6 -6 -6 -6 -6 -5 -5 ------- Run | Jun Mat Min Mat Min Mat Fac Low Low Zio Pro Fac Was Fac Low Low Dat Pro Fac Robot Analysis Total 5 | . 1 . 4 . . . . . . . . . . . . . . . Derelict Logs Recovered 13 | . . 2 . 1 . . 1 1 2 1 . . . 2 2 . 1 . Drone Launches . | . . . . . . . . . . . . . . . . . . . Drone Recoveries . | . . . . . . . . . . . . . . . . . . . Exploration | -11 -10 -10 -9 -9 -8 -7 -7 -7 -7 -6 -6 -6 -6 -6 -6 -6 -5 -5 ------------- Run | Jun Mat Min Mat Min Mat Fac Low Low Zio Pro Fac Was Fac Low Low Dat Pro Fac Turns Passed 19536 | 1943 2052 1047 2188 1515 1563 2108 484 268 782 263 935 255 1729 631 488 158 431 696 Spaces Moved 12836 | 145 702 463 861 654 595 1808 420 322 1076 316 1035 260 1734 630 617 123 506 569 Core 23 | 23 . . . . . . . . . . . . . . . . . . Treads 651 | 122 529 . . . . . . . . . . . . . . . . . Legs . | . . . . . . . . . . . . . . . . . . . Wheels 2990 | . 173 463 861 654 595 244 . . . . . . . . . . . . Hover 9172 | . . . . . . 1564 420 322 1076 316 1035 260 1734 630 617 123 506 569 Flight . | . . . . . . . . . . . . . . . . . . . Fastest Speed 50 | 50 160 215 210 210 210 54 71 71 71 71 61 61 61 68 68 68 68 68 Average Speed 108 | 149 225 215 218 210 213 78 71 71 71 71 61 61 65 68 68 68 68 70 Slowest Speed 480 | 160 480 215 230 210 225 225 71 71 71 71 129 61 129 68 68 68 68 74 Overloaded Moves . | . . . . . . . . . . . . . . . . . . . Propulsion Burnouts . | . . . . . . . . . . . . . . . . . . . Robots Hopped . | . . . . . . . . . . . . . . . . . . . Cave-ins Triggered . | . . . . . . . . . . . . . . . . . . . Exploration Rate (%) 62 | 24 95 98 73 98 51 48 52 50 83 44 27 97 36 79 69 80 68 15 Regions Visited 18 Branch Regions 10 Pre-discovered Areas 8 | . 1 1 1 1 . . . . 2 . . . . 1 . 1 . . Known Exits Taken 10 | . . . . . . 1 1 1 1 1 . . 1 1 1 1 1 . Unknown Exits Taken 6 | 1 1 1 1 1 1 . . . . . . . . . . . . . Scrap Searched 25 | . . 1 . 1 . . 3 1 3 1 . . . 9 4 . 2 . Spaces Dug 213 | . . . . . . 24 . . . 35 25 . 67 6 . . 19 37 Terrain Destroyed 934 | . . 25 17 . 26 38 . . . 92 58 1 220 54 59 . 153 191 Melee 46 | . . . . . . 24 . . . . 18 . 2 1 . . . 1 Projectile 63 | . . . . . . 1 . . . . 3 1 37 10 3 . 2 6 AOE 825 | . . 25 17 . 26 13 . . . 92 37 . 181 43 56 . 151 184 Terrain Rammed . | . . . . . . . . . . . . . . . . . . . Walls Destroyed . | . . . . . . . . . . . . . . . . . . . Machines Disabled . | . . . . . . . . . . . . . . . . . . . Actions | -11 -10 -10 -9 -9 -8 -7 -7 -7 -7 -6 -6 -6 -6 -6 -6 -6 -5 -5 --------- Run | Jun Mat Min Mat Min Mat Fac Low Low Zio Pro Fac Was Fac Low Low Dat Pro Fac Total 17562 | 1840 1007 509 1050 753 838 2278 585 361 1096 341 1244 352 2253 818 672 171 567 827 Wait 3558 | 1668 144 30 65 64 164 241 139 40 3 9 103 76 370 153 37 25 27 200 Move 12819 | 144 701 462 860 653 594 1807 419 321 1075 315 1035 259 1733 629 616 122 505 569 Hop . | . . . . . . . . . . . . . . . . . . . Pick Up 108 | 6 29 5 14 6 13 11 3 . 2 . 4 2 9 1 . . 1 2 Fast Attach 66 | 6 12 . 2 . 9 7 3 . 6 . 4 2 4 . 1 . 4 6 Attach 37 | . 2 . 3 4 3 8 2 . 1 . 3 . 1 1 . 1 1 7 Detach 6 | . . . . . . . . . 1 . 1 1 . . . . . 3 Swap 133 | . 12 1 16 4 7 31 4 . . 5 12 2 19 4 4 5 3 4 Drop 133 | . 18 6 24 2 19 22 4 . 8 . 3 4 12 1 1 . 4 5 Fire 495 | 16 84 5 66 19 29 77 4 . . 12 26 6 77 14 13 5 15 27 Melee 130 | . . . . . . 48 7 . . . 42 . 9 1 . 13 7 3 Ram 1 | . . . . . . . . . . . . . . . . . . 1 Kick . | . . . . . . . . . . . . . . . . . . . Crush 6 | . 5 . . 1 . . . . . . . . . . . . . . Escape Stasis 55 | . . . . . . 26 . . . . 10 . 19 . . . . . Rewire 15 | . . . . . . . . . . . 1 . . 14 . . . . Trap . | . . . . . . . . . . . . . . . . . . . Miscellaneous . | . . . . . . . . . . . . . . . . . . . Route ------- -11/Junkyard -10/Materials (discovered 5 exits: *Mat x3 / [*Min x2]) -10/Mines (discovered 4 exits: *Mat x2 / *Exi / [*Sub]) -9/Materials (discovered 2 exits: *Mat / [*Min]) -9/Mines (discovered 2 exits: *Mat x2) -8/Materials -7/Factory (discovered 4 exits: *Fac / Sto / *Low x2) -7/Lower Caves -7/Lower Caves -7/Zion -6/Proximity Caves -6/Factory (discovered 3 exits: *Fac / Low x2) -6/Waste -6/Factory (discovered 4 exits: *Fac x2 / *Low x2) -6/Lower Caves -6/Lower Caves -6/Data Miner -5/Proximity Caves -5/Factory (discovered 2 exits: Upp x2) History --------- Turn | Location | Event 4 | -11/Junkyard | Discovered new exit (range 15) 1712 | -11/Junkyard | Assembled infested the area 1944 | -11/Junkyard | Entered Materials 1945 | -10/Materials | Build established: Mutant 1970 | -10/Materials | Central database locked down 2254 | -10/Materials | Discovered new exit (range 16) 2301 | -10/Materials | Repaired Lgt. Treads 2329 | -10/Materials | Repaired Lgt. Treads 2356 | -10/Materials | Repaired Med. Laser 2703 | -10/Materials | Discovered new exit (range 6) 2717 | -10/Materials | Discovered new exit (range 16) 3701 | -10/Materials | Discovered new exit (range 10) 3910 | -10/Materials | Discovered new exit (range 12) 3996 | -10/Materials | Entered Mines 4021 | -10/Mines | Assisted by bots powering up and referring to "LRC-V3" 4050 | -10/Mines | Received a Mining Laser from a helpful Derelict 4075 | -10/Mines | Discovered new exit (range 8) 4176 | -10/Mines | Discovered new exit (range 10) 4447 | -10/Mines | Discovered new exit (range 5) 4501 | -10/Mines | Identified exit to Exiles 4867 | -10/Mines | Joined a pair of Derelicts in attacking an 0b10 outpost 5043 | -10/Mines | Entered Materials 5043 | -9/Materials | Accompanied by 5 allies 5043 | -9/Materials | Evolved 2 slots: Utility x2 5049 | -9/Materials | Led the pair of lost Derelicts to an unsafe place 5179 | -9/Materials | Build established: Scavenger-Mutant 5371 | -9/Materials | Discovered new exit (range 11) 6542 | -9/Materials | Discovered new exit (range 8) 6778 | -9/Materials | Build established: Mutant 7231 | -9/Materials | Entered Mines 7304 | -9/Mines | Discovered new exit (range 4) 7311 | -9/Mines | Received a Rocket Launcher from a helpful Derelict 7461 | -9/Mines | Found a hidden stash of uninstalled traps 7657 | -9/Mines | A weapon hastily lodged in a ceiling crevice suddenly fell to the ground 7852 | -9/Mines | Discovered new exit (range 11) 8150 | -9/Mines | Assembled infested the area 8155 | -9/Mines | Assisted by a Guerilla fighting off Assembled 8744 | -9/Mines | System corruption reached 10% 8746 | -9/Mines | Entered Materials 8746 | -8/Materials | Evolved 2 slots: Propulsion x1, Utility x1 8811 | -8/Materials | Repaired Lgt. EM Pulse Cannon 8845 | -8/Materials | Repaired Lgt. EM Pulse Cannon 9618 | -8/Materials | Met 7R-MNS 9834 | -8/Materials | Discovered new exit (range 5) 10309 | -8/Materials | Entered Factory 10309 | -7/Factory | Evolved 2 slots: Propulsion x1, Utility x1 10310 | -7/Factory | Caught up to 7R-MNS 10597 | -7/Factory | Build established: Scavenger-Mutant 10899 | -7/Factory | Identified exit to Storage 10899 | -7/Factory | Identified exit to Lower Caves 11455 | -7/Factory | Fabricated Cmb. Airjet? 11539 | -7/Factory | Build established: Hacker-Mutant 12171 | -7/Factory | System corruption reached 10% 12260 | -7/Factory | Fabricated Cmb. Airjet (x2) 12347 | -7/Factory | Discovered new exit (range 14) 12417 | -7/Factory | Entered Lower Caves 12632 | -7/Lower Caves | Encountered a Warlord checkpoint 12771 | -7/Lower Caves | Discovered new exit (range 11) 12801 | -7/Lower Caves | Identified exit to Lower Caves 12881 | -7/Lower Caves | Learned Factory garrison access intel 12901 | -7/Lower Caves | Entered another Lower Caves area 13023 | -7/Lower Caves | Encountered a Warlord checkpoint 13030 | -7/Lower Caves | Learned Factory interactive machine intel 13056 | -7/Lower Caves | Discovered new exit (range 15) 13065 | -7/Lower Caves | Identified exit to Zion 13169 | -7/Lower Caves | Entered Zion 13193 | -7/Zion | System corruption cleaned by Quarantine Array 13304 | -7/Zion | Discovered new exit (range 15) 13385 | -7/Zion | Learned location of Armory (-3) 13457 | -7/Zion | Found CR-A16's Pointy Stick 13489 | -7/Zion | Learned Factory security intel 13517 | -7/Zion | Learned location of Quarantine (-2) 13592 | -7/Zion | System corruption cleaned by Quarantine Array 13807 | -7/Zion | Learned location of 1 exit from Lower Caves 13951 | -7/Zion | Identified exit to Proximity Caves 13951 | -7/Zion | Entered Proximity Caves 14199 | -6/Proximity Caves | Discovered new exit (range 14) 14208 | -6/Proximity Caves | Learned location of 1 exit from Proximity Caves 14214 | -6/Proximity Caves | Identified exit to Factory 14214 | -6/Proximity Caves | Entered Factory 14214 | -6/Factory | Evolved 2 slots: Propulsion x1, Utility x1 14216 | -6/Factory | Loaded intel: 52 interactive machine locations 14217 | -6/Factory | Loaded intel: 4 garrison access locations 14251 | -6/Factory | Repaired Missile Launcher? 14656 | -6/Factory | Fabricated Launcher Loader (x2) 14914 | -6/Factory | First assault squad dispatched 14921 | -6/Factory | Allied Derelicts emerged from ambush trap array 14955 | -6/Factory | P-60 Hacker assimilated allied S7-7F9(g) 15011 | -6/Factory | Spotted B-75 Beast 15033 | -6/Factory | Revealed the true nature of CR-A16's Pointy Stick 15039 | -6/Factory | Destroyed B-75 Beast 15049 | -6/Factory | Identified exit to Lower Caves 15130 | -6/Factory | Discovered new exit (range 16) 15149 | -6/Factory | Manually triggered Chute Trap 15149 | -6/Factory | Sucked down chute 15149 | -6/Factory | Entered Waste 15154 | -6/Waste | Spotted C-40 Crusher 15160 | -6/Waste | Spotted C-40 Crusher 15209 | -6/Waste | Spotted C-40 Crusher 15213 | -6/Waste | Warlord forces began an assault 15276 | -6/Waste | Allies destroyed C-40 Crusher 15287 | -6/Waste | Spotted C-40 Crusher 15299 | -6/Waste | Allies destroyed C-40 Crusher 15299 | -6/Waste | Allies destroyed C-40 Crusher 15316 | -6/Waste | Spotted C-40 Crusher 15321 | -6/Waste | Allies destroyed C-40 Crusher 15347 | -6/Waste | Discovered new exit (range 11) 15367 | -6/Waste | Identified exit to Factory 15404 | -6/Waste | Entered Factory 15404 | -6/Factory | Accompanied by 14 allies 15514 | -6/Factory | Spotted B-75 Beast 15528 | -6/Factory | Destroyed B-75 Beast 15737 | -6/Factory | Garrison activated, responded to threat 15754 | -6/Factory | First assault squad dispatched 15873 | -6/Factory | Destroyed 7 combat bots 16081 | -6/Factory | Repaired Imp. Airjet 16184 | -6/Factory | Discovered new exit (range 8) 16189 | -6/Factory | Identified exit to Factory 16548 | -6/Factory | Fabricated Cmb. Gravmag System (x2) 16836 | -6/Factory | Fabricated Cmb. Gravmag System? 17055 | -6/Factory | Repaired Adv. Sensor Array 17072 | -6/Factory | Discovered exit to Factory (range 5) 17133 | -6/Factory | Entered Lower Caves 17134 | -6/Lower Caves | Identified exit to Lower Caves 17241 | -6/Lower Caves | Attacked by a delusional Derelict stockpiling Unaware 17295 | -6/Lower Caves | Learned location of 1 exit from Factory 17764 | -6/Lower Caves | Entered another Lower Caves area 17764 | -6/Lower Caves | Accompanied by 3 allies 17765 | -6/Lower Caves | Encountered a Warlord checkpoint 17871 | -6/Lower Caves | Discovered new exit (range 11) 17877 | -6/Lower Caves | Identified exit to Data Miner 18133 | -6/Lower Caves | Learned Factory trap positions 18252 | -6/Lower Caves | Entered Data Miner 18252 | -6/Data Miner | Discovered new exit (range 6) 18265 | -6/Data Miner | Met Data Miner 18280 | -6/Data Miner | Learned location of Section 7 (-2) 18280 | -6/Data Miner | Acquired the access code to Warlord's prototype stash 18289 | -6/Data Miner | Received God Mode back door access code from Data Miner 18308 | -6/Data Miner | Data Conduit disabled 18405 | -6/Data Miner | Identified exit to Proximity Caves 18410 | -6/Data Miner | Entered Proximity Caves 18607 | -5/Proximity Caves | Spotter reported a threat 18637 | -5/Proximity Caves | Spotted B-75 Beast 18641 | -5/Proximity Caves | Destroyed B-75 Beast 18841 | -5/Proximity Caves | Entered Factory 18841 | -5/Factory | Evolved 2 slots: Utility x2 18842 | -5/Factory | Identified exit to Upper Caves 18844 | -5/Factory | Loaded intel: 114 trap records 19141 | -5/Factory | First assault squad dispatched 19391 | -5/Factory | Repaired Cmb. Airjet? 19532 | -5/Factory | Cargo convoy interrupted 19537 | -5/Factory | Self-destructed Last Messages --------------- 19529_ Lyr. Medium Armor Plating destroyed. 19530_ Critical hit (Burn: +37). 19531_ X-77 Beamer unfolds itself. 19531_ M-28 Smith unfolds itself. 19531_ C-30 ARC bursts open, deploying its payload. 19531_ P-70 Sage unfolds itself. 19531_ X-72 Disruptor unfolds itself. 19531_ P-70 Sage unfolds itself. 19531_ I-47 Archangel unfolds itself. 19531_ Pressure Siphon disabled. 19531_ Cmb. Airjet destroyed. 19532_ ALERT: Cargo convoy interrupted, initiating access lockdown. 19532_ Cmb. Gravmag System destroyed. 19533_ G-50 Soldier destroyed. 19533_ Cmb. Gravmag System destroyed. 19535_ P-70 Sage destroyed. 19536_ Lrn. Missile Launcher destroyed. 19537_ Penetrated by Slug. 19537_ Phase Cannon destroyed. 19537_ Penetrated by Slug. Map ----- +----------------------------------------------------+ | ?????????????????????????????????????????????????? | | ?????????????????????????????????????????????????? | | ?????????????????????????????????????????????????? | | ?????????????????????????????????????????????????? | | ?????????????????????????????????????????????????? | | ?????????????????????????????????????????????????? | | ?????????????????????????????????????????????????? | | ?????????????????????????????????????????????????? | | ??????????? ??????????????????????????????????? | | ??????????? #????????????????????????????????? | | ??????????# ###########??????????????????????? | | ??????????# # !!!#???????????????????? | | ??????????+ # ^ !!!#???????????????????? | | ??????????# # !!!#???????????????????? | | ??????????# # #???????????????????? | | ??????????# # #???????????????????? | | ??????????# # ^ #???????????????????? | | ??????????# # ^ ^ #???????????????????? | | ??????????# # ^ ^ #???????????????????? | | ??????????# # #???????????????????? | | ########### # #???????????????????? | | # # ?? #???????????????????? | | " "" "" # # ???? #???????????????????? | | " "" "" # i m g #####;;#####+####???????????? | | " """ """ h p x !! #???????????? | | """ """ + i%xpp @ !! #???????????? | | = """ """ |%x A +???????????? | | # p ! % #???????????? | | ! ] / % %""" #???????????? | | ###"####### #### """" ? #???????????? | | #????? w #???? """"???????????????? | | """ #??? #????? ???????????????? | | R" #???""" """" ?????? ??????????????? | | """ /?? ""???"""" ??????? ######??????????????? | | ##?????????""???????? #???????????????????? | | #??????????"????????? #???????????????????? | | #???????????????????? +???????????????????? | | #?????????????????????###???????????????????? | | ######???????????????????????????????????????????? | | ?????????????????????????????????????????????????? | | ?????????????????????????????????????????????????? | | ?????????????????????????????????????????????????? | | ?????????????????????????????????????????????????? | | ?????????????????????????????????????????????????? | | ?????????????????????????????????????????????????? | | ?????????????????????????????????????????????????? | | ?????????????????????????????????????????????????? | | ?????????????????????????????????????????????????? | | ?????????????????????????????????????????????????? | | ?????????????????????????????????????????????????? | +----------------------------------------------------+ Best States ------------- Heat Dissipation 64 Energy Generation 18 Energy Capacity 300 Matter Stores 300 Matter Capacity 300 Sight Range 16 Robot Scan Range 16 Terrain Scan Density 10 Armor Coverage 675 Resistance: TH 15 Resistance: EM 15 Weapon Cycling 15 Evasion (%) 54 Targeting Accuracy 8 Recoil Reduction 2 Offensive Hacking 21 Item Schematics ----------------- Hacking Suite | -9/Materials | Scanalyzed Lrn. Tractor Beam | -8/Materials | Hacked Cmb. Airjet | -8/Materials | Scanalyzed Imp. Sensor Array | -8/Materials | Hacked Launcher Loader | -6/Factory | Hacked Cmb. Gravmag System | -6/Factory | Scanalyzed Combat Drone Bay | -6/Data Miner | Free Lgt. Regenerative Plating | -6/Data Miner | Free Cld. Nuclear Pulse Thruster | -6/Data Miner | Free Imp. Thermal Defense Suite | -6/Data Miner | Free Hvy. Gatling Laser | -6/Data Miner | Free Adv. Medium Treads | -6/Data Miner | Free Graphene Brace | -6/Data Miner | Free Matter Neutralizer | -6/Data Miner | Free Imp. Force Field | -6/Data Miner | Free Robot Schematics ------------------ L-41 Fighter | -6/Data Miner | Free Y-64 Sentinel | -6/Data Miner | Free H-66 Slayer | -6/Data Miner | Free Fabricated ------------ Cmb. Airjet | x2 | -7/Factory Cmb. Airjet | x2 | -7/Factory Launcher Loader | x2 | -6/Factory Cmb. Gravmag System | x2 | -6/Factory Cmb. Gravmag System | x2 | -6/Factory Alien Tech Used ----------------- None Achievements -------------- None Challenges ------------ None Game ------ Seed CargoSegregatorBiocell Manual? 0 Play Time 02:24:18 Cumulative 1790.3 hours Start 2023.09.13 @ 20:06:41 End 2023.09.13 @ 22:39:40 Sessions 1 Manual Loads 0 Difficulty Rogue Special Mode None Game No. 628 Rogue 628 Adventurer 0 Explorer 0 Win Type - Total 139 Types 28/13/62/7/1/2/24/1/1 Lore% 96 Gallery% 96 Achievement% 88 Wizard Run 0 Options --------- ASCII 0 Keyboard 0 Movement Numpad Keybinds 0 Fullscreen 2 Font 18/SmallcapsGlow Map View 76x50 Tactical HUD 1 Map Filters NONE Filters NONE Steam 1 RUN: c85ec4bf-ed41-41f1-9e1a-29b083385d35